fUST/lending_fUST_20240129
["ID","MTS","AMOUNT","RATE_DAILY","PERIOD"]
[312956794,1706538638878,-155.7119032,0.00024995,2]
[312956795,1706538638888,-163.42258871,0.00024995,2]
[312956796,1706538638897,-7407.11429624,0.00025,2]
[312956797,1706538638914,-246.18688747,0.00025,2]
[312956798,1706538638923,-155.0,0.00025,2]
[312956799,1706538638934,-1829.09841763,0.00025,2]
[312956800,1706538638943,-681.03348207,0.00025,2]
[312956801,1706538638952,-49.64160526,0.00025,2]
[312956802,1706538638964,-731.92344257,0.00025,2]
[312956827,1706538642881,-3948.43109241,0.00025,2]
[312956828,1706538642891,-5722.69655812,0.00025,2]
[312956829,1706538642902,-2179.42258337,0.00025,2]
[312956830,1706538642914,-16884.80397123,0.00025,2]
[312956831,1706538642925,-614.56868611,0.00025,2]
[312956832,1706538642939,-7684.51177783,0.00025,2]
[312956872,1706538692319,800.0,0.0003,120]
[312956874,1706538787882,-162.06854937,0.000295,30]
[312956875,1706538787916,-1000.0,0.0003,30]
[312956876,1706538787939,-167.02937,0.0003061,120]
[312956877,1706538787963,-1000.0,0.00031,31]
[312956878,1706538787987,-1000.0,0.00032,32]
[312956879,1706538788014,-1000.0,0.00033,33]
[312956880,1706538788038,-1000.0,0.00034,34]
[312956881,1706538788062,-180.0,0.00034,120]
[312956882,1706538788085,-1000.0,0.00035,35]
[312956883,1706538788111,-158.254643,0.00035616,31]
[312956884,1706538788138,-158.254643,0.00035616,61]
[312956885,1706538788161,-158.254643,0.00035616,90]
[312956886,1706538788185,-158.254643,0.00035616,120]
[312956887,1706538788210,-1583.03265816,0.00038,120]
[312956888,1706538788251,-261.04607655,0.0003863,31]
[312956889,1706538788274,-613.55953549,0.0003863,31]
[312956890,1706538788297,-500.0,0.0003863,31]
[312956891,1706538788321,-500.0,0.0003863,31]
[312956892,1706538788344,-500.0,0.0003863,31]
[312956893,1706538788366,-500.0,0.0003863,31]
[312956894,1706538788389,-500.0,0.0003863,31]
[312956895,1706538788414,-500.0,0.0003863,31]
[312956896,1706538788437,-500.0,0.0003863,31]
[312956897,1706538788460,-500.0,0.0003863,31]
[312956898,1706538788483,-500.0,0.0003863,31]
[312956899,1706538788507,-500.0,0.0003863,31]
[312956900,1706538788530,-500.13534724,0.0003863,31]
[312956901,1706538788553,-500.0,0.0003863,30]
[312956902,1706538788575,-500.0,0.0003863,31]
[312956903,1706538788598,-562.76527285,0.0003863,31]
[312956904,1706538788621,-500.0,0.0003863,31]
[312956905,1706538788738,-500.0,0.0003863,31]
[312956906,1706538788762,-250.62499636,0.0003863,31]
[312956907,1706538788785,-500.0,0.0003863,31]
[312956908,1706538788809,-502.85776415,0.0003863,31]
[312956909,1706538788832,-1691.94,0.0003863,31]
[312956910,1706538788854,-500.0,0.0003863,31]
[312956911,1706538788877,-500.0,0.0003863,31]
[312956912,1706538788900,-500.0,0.0003863,31]
[312956913,1706538788922,-392.55728176,0.0003863,31]
[312956914,1706538788944,-500.0,0.0003863,31]
[312956915,1706538788966,-150.98676767,0.0003863,31]
[312956916,1706538788989,-500.0,0.0003863,31]
[312956917,1706538789013,-530.59,0.0003863,31]
[312956918,1706538789036,-828.48,0.0003863,31]
[312956919,1706538789062,-500.0,0.0003863,31]
[312956920,1706538789091,-500.0,0.0003863,31]
[312956921,1706538789115,-500.0,0.0003863,31]
[312956922,1706538789143,-503.57481433,0.0003863,31]
[312956923,1706538789167,-500.0,0.0003863,31]
[312956924,1706538789190,-506.71513326,0.0003863,31]
[312956925,1706538789216,-500.0,0.0003863,31]
[312956926,1706538789240,-500.0,0.0003863,31]
[312956927,1706538789264,-500.0,0.0003863,31]
[312956928,1706538789288,-500.0,0.0003863,31]
[312956929,1706538789316,-1435.56,0.0003863,31]
[312956930,1706538789339,-704.48,0.0003863,31]
[312956931,1706538789364,-316.00267957,0.0003863,31]
[312956932,1706538789387,-503.99837137,0.0003863,31]
[312956933,1706538789411,-502.51544513,0.0003863,31]
[312956934,1706538789434,-500.0,0.0003863,31]
[312956935,1706538789457,-4725.61,0.0003863,31]
[312956936,1706538789480,-1231.73,0.0003863,31]
[312956937,1706538789503,-1441.83,0.0003863,31]
[312956938,1706538789526,-500.0,0.0003863,31]
[312956939,1706538789549,-328.10487459,0.0003863,31]
[312956940,1706538789581,-503.39278674,0.0003863,31]
[312956941,1706538789604,-2221.56,0.0003863,31]
[312956942,1706538789627,-500.0,0.0003863,31]
[312956943,1706538789649,-510.88148755,0.0003863,31]
[312956944,1706538789672,-500.0,0.0003863,31]
[312956945,1706538789695,-500.0,0.0003863,31]
[312956946,1706538789717,-500.0,0.0003863,31]
[312956947,1706538789740,-813.27,0.0003863,31]
[312956948,1706538789762,-501.54785008,0.0003863,31]
[312956949,1706538789784,-500.0,0.0003863,31]
[312956950,1706538789811,-807.25,0.0003863,31]
[312956951,1706538789835,-503.65017373,0.0003863,31]
[312956952,1706538789857,-500.0,0.0003863,31]
[312956953,1706538789880,-391.29909499,0.0003863,31]
[312956954,1706538789903,-724.98,0.0003863,31]
[312956955,1706538789925,-500.0,0.0003863,31]
[312956956,1706538789948,-158.57126048,0.0003863,31]
[312956957,1706538789971,-1574.41,0.0003863,31]
[312956958,1706538789993,-500.48799566,0.0003863,31]
[312956959,1706538790018,-905.22,0.0003863,31]
[312956960,1706538790043,-500.0,0.0003863,31]
[312956961,1706538790067,-500.0,0.0003863,31]
[312956962,1706538790092,-500.0,0.0003863,31]
[312956963,1706538790115,-500.0,0.0003863,31]
[312956964,1706538790142,-500.0,0.0003863,31]
[312956965,1706538790166,-500.0,0.0003863,31]
[312956966,1706538790189,-22699.13,0.0003863,31]
[312956967,1706538790213,-500.0,0.0003863,31]
[312956968,1706538790236,-500.0,0.0003863,31]
[312956969,1706538790259,-500.0,0.0003863,31]
[312956970,1706538790282,-500.0,0.0003863,31]
[312956971,1706538790307,-3427.6,0.0003863,31]
[312956972,1706538790329,-500.0,0.0003863,31]
[312956973,1706538790353,-500.0,0.0003863,31]
[312956974,1706538790377,-4748.13,0.0003863,31]
[312956975,1706538790399,-1057.6,0.0003863,31]
[312956976,1706538790422,-500.0,0.0003863,31]
[312956977,1706538790445,-370.61996498,0.0003863,31]
[312956978,1706538790468,-500.0,0.0003863,31]
[312956979,1706538790491,-1017.15,0.0003863,31]
[312956980,1706538790515,-2169.21,0.0003863,31]
[312956981,1706538790538,-502.37430301,0.0003863,31]
[312956982,1706538790562,-1131.83,0.0003863,31]
[312956983,1706538790585,-500.0,0.0003863,31]
[312956984,1706538790609,-500.0,0.0003863,31]
[312956985,1706538790716,-502.8968402,0.0003863,31]
[312956986,1706538790741,-500.0,0.0003863,31]
[312956987,1706538790765,-779.34,0.0003863,31]
[312956988,1706538790789,-191.62569792,0.0003863,31]
[312956989,1706538790820,-9873.08,0.0003863,31]
[312956990,1706538790844,-508.01926491,0.0003863,31]
[312956991,1706538790869,-503.25857309,0.0003863,31]
[312956992,1706538790892,-500.0,0.0003863,31]
[312956993,1706538790916,-11797.11,0.0003863,31]
[312956994,1706538790938,-2020.52,0.0003863,31]
[312956995,1706538790960,-500.0,0.0003863,31]
[312956996,1706538790984,-500.0,0.0003863,31]
[312956997,1706538791007,-502.15825786,0.0003863,31]
[312956998,1706538791029,-743.87,0.0003863,31]
[312956999,1706538791055,-500.0,0.0003863,31]
[312957000,1706538791078,-2211.57,0.0003863,31]
[312957001,1706538791101,-271.42347524,0.0003863,31]
[312957002,1706538791125,-502.25684128,0.0003863,31]
[312957003,1706538791149,-500.0,0.0003863,31]
[312957004,1706538791173,-501.66638439,0.0003863,31]
[312957005,1706538791198,-597.53777029,0.0003863,31]
[312957006,1706538791222,-924.3,0.0003863,31]
[312957007,1706538791246,-1073.34,0.0003863,31]
[312957008,1706538791271,-872.23,0.0003863,31]
[312957009,1706538791295,-1852.45,0.0003863,31]
[312957010,1706538791320,-5429.7,0.0003863,31]
[312957011,1706538791343,-1635.04,0.0003863,31]
[312957012,1706538791366,-616.60020469,0.0003863,31]
[312957013,1706538791388,-500.0,0.0003863,31]
[312957014,1706538791411,-9404.46,0.0003863,31]
[312957015,1706538791434,-14041.2,0.0003863,31]
[312957016,1706538791458,-575.49432751,0.0003863,31]
[312957017,1706538791481,-500.0,0.0003863,31]
[312957018,1706538791503,-500.0,0.0003863,31]
[312957019,1706538791526,-507.22467254,0.0003863,31]
[312957020,1706538791549,-2669.14,0.0003863,31]
[312957021,1706538791574,-500.0,0.0003863,31]
[312957022,1706538791597,-2294.83,0.0003863,31]
[312957023,1706538791624,-500.0,0.0003863,31]
[312957024,1706538791656,-500.0,0.0003863,31]
[312957025,1706538791688,-505.14772255,0.0003863,31]
[312957026,1706538791718,-500.0,0.0003863,31]
[312957027,1706538791749,-500.0,0.0003863,31]
[312957028,1706538791780,-878.0,0.0003863,31]
[312957029,1706538791809,-4182.51,0.0003863,31]
[312957030,1706538791838,-500.0,0.0003863,31]
[312957031,1706538791868,-14584.84,0.0003863,31]
[312957032,1706538791898,-500.0,0.0003863,31]
[312957033,1706538791925,-500.0,0.0003863,31]
[312957034,1706538791957,-500.0,0.0003863,31]
[312957035,1706538791985,-500.0,0.0003863,31]
[312957036,1706538792013,-660.89,0.0003863,31]
[312957037,1706538792044,-500.0,0.0003863,31]
[312957038,1706538792076,-500.0,0.0003863,31]
[312957039,1706538792110,-749.73,0.0003863,31]
[312957040,1706538792137,-501.56744258,0.0003863,31]
[312957041,1706538792163,-2909.62,0.0003863,31]
[312957042,1706538792193,-2473.64,0.0003863,31]
[312957043,1706538792222,-500.0,0.0003863,31]
[312957044,1706538792249,-600.07290882,0.0003863,31]
[312957045,1706538792275,-500.0,0.0003863,31]
[312957046,1706538792301,-8000.0,0.000389,30]
[312957047,1706538792329,-500.0,0.00038904,31]
[312957048,1706538792357,-500.0,0.00038904,31]
[312957049,1706538792385,-500.0,0.00038904,31]
[312957050,1706538792412,-500.0,0.00038904,31]
[312957051,1706538792439,-500.0,0.00038904,31]
[312957052,1706538792466,-500.0,0.00038904,31]
[312957053,1706538792494,-500.0,0.00038904,31]
[312957054,1706538792525,-500.0,0.00038904,31]
[312957055,1706538792552,-500.0,0.00038904,30]
[312957056,1706538792582,-500.0,0.00038904,31]
[312957057,1706538792610,-500.0,0.00038904,31]
[312957058,1706538792638,-500.0,0.00038904,31]
[312957059,1706538792666,-500.0,0.00038904,31]
[312957060,1706538792693,-1691.94,0.00038904,31]
[312957061,1706538792720,-500.0,0.00038904,31]
[312957062,1706538792873,-500.0,0.00038904,31]
[312957063,1706538792898,-500.0,0.00038904,31]
[312957064,1706538792921,-500.0,0.00038904,31]
[312957065,1706538792944,-500.0,0.00038904,31]
[312957066,1706538792968,-530.59,0.00038904,31]
[312957067,1706538792990,-828.48,0.00038904,31]
[312957068,1706538793013,-500.0,0.00038904,31]
[312957069,1706538793037,-480.40017622,0.00038904,31]
[312957070,1706538793060,-500.0,0.00038904,31]
[312957071,1706538793084,-500.0,0.00038904,31]
[312957072,1706538793108,-500.0,0.00038904,31]
[312957073,1706538793131,-500.0,0.00038904,31]
[312957074,1706538793157,-329.47274382,0.00038904,31]
[312957075,1706538793181,-500.0,0.00038904,31]
[312957076,1706538793203,-1435.56,0.00038904,31]
[312957077,1706538793228,-704.48,0.00038904,31]
[312957078,1706538793251,-500.0,0.00038904,31]
[312957079,1706538793274,-4725.61,0.00038904,31]
[312957080,1706538793296,-1231.73,0.00038904,31]
[312957081,1706538793321,-1441.83,0.00038904,31]
[312957082,1706538793344,-500.0,0.00038904,31]
[312957083,1706538793367,-2221.56,0.00038904,31]
[312957084,1706538793390,-566.36093185,0.00038904,31]
[312957085,1706538793413,-500.0,0.00038904,31]
[312957086,1706538793439,-500.0,0.00038904,31]
[312957087,1706538793462,-500.0,0.00038904,31]
[312957088,1706538793486,-813.27,0.00038904,31]
[312957089,1706538793509,-500.0,0.00038904,31]
[312957090,1706538793532,-807.25,0.00038904,31]
[312957091,1706538793557,-500.0,0.00038904,31]
[312957092,1706538793580,-724.98,0.00038904,31]
[312957093,1706538793603,-500.0,0.00038904,31]
[312957094,1706538793626,-1574.41,0.00038904,31]
[312957095,1706538793649,-905.22,0.00038904,31]
[312957096,1706538793673,-500.0,0.00038904,31]
[312957097,1706538793696,-552.62825508,0.00038904,31]
[312957098,1706538793718,-500.0,0.00038904,31]
[312957099,1706538793742,-500.0,0.00038904,31]
[312957100,1706538793767,-500.0,0.00038904,31]
[312957101,1706538793791,-500.0,0.00038904,31]
[312957102,1706538793817,-22699.13,0.00038904,31]
[312957103,1706538793843,-500.0,0.00038904,31]
[312957104,1706538793902,-500.0,0.00038904,31]
[312957105,1706538793926,-500.0,0.00038904,31]
[312957106,1706538793949,-500.0,0.00038904,31]
[312957107,1706538793973,-3427.6,0.00038904,31]
[312957108,1706538793996,-500.0,0.00038904,31]
[312957109,1706538794020,-500.0,0.00038904,31]
[312957110,1706538794045,-4748.13,0.00038904,31]
[312957111,1706538794070,-1057.6,0.00038904,31]
[312957112,1706538794094,-500.0,0.00038904,31]
[312957113,1706538794118,-251.80154718,0.00038904,31]
[312957114,1706538794144,-1017.15,0.00038904,31]
[312957115,1706538794169,-2169.21,0.00038904,31]
[312957116,1706538794201,-1131.83,0.00038904,31]
[312957117,1706538794231,-295.17852703,0.00038904,31]
[312957118,1706538794256,-500.0,0.00038904,31]
[312957119,1706538794280,-500.0,0.00038904,31]
[312957120,1706538794309,-779.34,0.00038904,31]
[312957121,1706538794333,-9873.08,0.00038904,31]
[312957122,1706538794356,-500.0,0.00038904,31]
[312957123,1706538794382,-11797.11,0.00038904,31]
[312957124,1706538794406,-2020.52,0.00038904,31]
[312957125,1706538794430,-500.0,0.00038904,31]
[312957126,1706538794454,-500.0,0.00038904,31]
[312957127,1706538794477,-743.87,0.00038904,31]
[312957128,1706538794500,-500.0,0.00038904,31]
[312957129,1706538794523,-2211.57,0.00038904,31]
[312957130,1706538794547,-500.0,0.00038904,31]
[312957131,1706538794572,-924.3,0.00038904,31]
[312957132,1706538794597,-1073.34,0.00038904,31]
[312957133,1706538794621,-872.23,0.00038904,31]
[312957134,1706538794645,-1852.45,0.00038904,31]
[312957135,1706538794668,-1635.04,0.00038904,31]
[312957136,1706538794691,-5429.7,0.00038904,31]
[312957137,1706538794714,-500.0,0.00038904,31]
[312957138,1706538794738,-9404.46,0.00038904,31]
[312957139,1706538794762,-14041.2,0.00038904,31]
[312957140,1706538794784,-500.0,0.00038904,31]
[312957141,1706538794810,-500.0,0.00038904,31]
[312957142,1706538794833,-2669.14,0.00038904,31]
[312957143,1706538794856,-500.0,0.00038904,31]
[312957144,1706538794969,-2294.83,0.00038904,31]
[312957145,1706538794994,-500.0,0.00038904,31]
[312957146,1706538795018,-500.0,0.00038904,31]
[312957147,1706538795042,-509.5033345,0.00038904,31]
[312957148,1706538795066,-500.0,0.00038904,31]
[312957149,1706538795089,-878.0,0.00038904,31]
[312957150,1706538795112,-4182.51,0.00038904,31]
[312957151,1706538795134,-500.0,0.00038904,31]
[312957152,1706538795162,-14584.84,0.00038904,31]
[312957153,1706538795186,-500.0,0.00038904,31]
[312957154,1706538795210,-500.0,0.00038904,31]
[312957155,1706538795236,-500.0,0.00038904,31]
[312957156,1706538795259,-500.0,0.00038904,31]
[312957157,1706538795282,-660.89,0.00038904,31]
[312957158,1706538795308,-500.0,0.00038904,31]
[312957159,1706538795331,-500.0,0.00038904,31]
[312957160,1706538795355,-749.73,0.00038904,31]
[312957161,1706538795379,-2909.62,0.00038904,31]
[312957162,1706538795402,-2473.64,0.00038904,31]
[312957163,1706538795425,-257.48744861,0.00038904,31]
[312957164,1706538795448,-500.0,0.00038904,31]
[312957165,1706538795471,-153.32,0.00039,120]
[312957166,1706538795494,-594.07838853,0.00039178,31]
[312957167,1706538795518,-500.0,0.00039178,31]
[312957168,1706538795541,-500.0,0.00039178,31]
[312957169,1706538795566,-500.0,0.00039178,31]
[312957170,1706538795589,-500.0,0.00039178,31]
[312957171,1706538795613,-500.0,0.00039178,31]
[312957172,1706538795635,-500.0,0.00039178,31]
[312957173,1706538795658,-500.0,0.00039178,30]
[312957174,1706538795683,-500.0,0.00039178,31]
[312957175,1706538795706,-500.0,0.00039178,31]
[312957176,1706538795729,-500.0,0.00039178,31]
[312957177,1706538795752,-500.0,0.00039178,31]
[312957178,1706538795776,-1691.94,0.00039178,31]
[312957179,1706538795798,-188.07991021,0.00039178,31]
[312957180,1706538795823,-512.89823296,0.00039178,31]
[312957181,1706538795846,-500.0,0.00039178,31]
[312957182,1706538795869,-500.0,0.00039178,31]
[312957183,1706538795893,-255.77627681,0.00039178,31]
[312957184,1706538795917,-530.59,0.00039178,31]
[312957185,1706538795942,-828.48,0.00039178,31]
[312957186,1706538795965,-500.0,0.00039178,31]
[312957187,1706538795989,-500.0,0.00039178,31]
[312957188,1706538796012,-500.0,0.00039178,31]
[312957189,1706538796036,-500.0,0.00039178,31]
[312957190,1706538796062,-520.56601438,0.00039178,31]
[312957191,1706538796084,-500.0,0.00039178,31]
[312957192,1706538796107,-1435.56,0.00039178,31]
[312957193,1706538796130,-704.48,0.00039178,31]
[312957194,1706538796157,-500.0,0.00039178,31]
[312957195,1706538796180,-4725.61,0.00039178,31]
[312957196,1706538796204,-1231.73,0.00039178,31]
[312957197,1706538796229,-1441.83,0.00039178,31]
[312957198,1706538796253,-500.0,0.00039178,31]
[312957199,1706538796277,-2221.56,0.00039178,31]
[312957200,1706538796300,-500.0,0.00039178,31]
[312957201,1706538796326,-500.0,0.00039178,31]
[312957202,1706538796353,-500.0,0.00039178,31]
[312957203,1706538796378,-813.27,0.00039178,31]
[312957204,1706538796402,-500.0,0.00039178,31]
[312957205,1706538796425,-807.25,0.00039178,31]
[312957206,1706538796450,-500.0,0.00039178,31]
[312957207,1706538796475,-724.98,0.00039178,31]
[312957208,1706538796503,-500.0,0.00039178,31]
[312957209,1706538796528,-1574.41,0.00039178,31]
[312957210,1706538796552,-905.22,0.00039178,31]
[312957211,1706538796575,-500.0,0.00039178,31]
[312957212,1706538796598,-500.0,0.00039178,31]
[312957213,1706538796621,-500.0,0.00039178,31]
[312957214,1706538796645,-500.0,0.00039178,31]
[312957215,1706538796667,-500.0,0.00039178,31]
[312957216,1706538796691,-22699.13,0.00039178,31]
[312957217,1706538796723,-500.0,0.00039178,31]
[312957218,1706538796748,-500.0,0.00039178,31]
[312957219,1706538796773,-500.0,0.00039178,31]
[312957220,1706538796798,-498.64124944,0.00039178,31]
[312957221,1706538796824,-3427.6,0.00039178,31]
[312957222,1706538796849,-500.0,0.00039178,31]
[312957223,1706538796872,-359.19537698,0.00039178,31]
[312957224,1706538797013,-4748.13,0.00039178,31]
[312957225,1706538797041,-1057.6,0.00039178,31]
[312957226,1706538797066,-500.0,0.00039178,31]
[312957227,1706538797091,-1017.15,0.00039178,31]
[312957228,1706538797115,-2169.21,0.00039178,31]
[312957229,1706538797142,-1131.83,0.00039178,31]
[312957230,1706538797168,-500.0,0.00039178,31]
[312957231,1706538797193,-533.37914395,0.00039178,31]
[312957232,1706538797218,-779.34,0.00039178,31]
[312957233,1706538797243,-9873.08,0.00039178,31]
[312957234,1706538797267,-500.0,0.00039178,31]
[312957235,1706538797291,-2752.94363151,0.00039178,31]
[312957236,1706538800656,-500.0,0.0003863,31]
[312957237,1706538800680,-4154.62,0.0003863,31]
[312957238,1706538800705,-500.0,0.00038904,31]
[312957239,1706538800730,-4154.62,0.00038904,31]
[312957240,1706538800754,-9044.16636849,0.00039178,31]
[312957241,1706538800779,-2020.52,0.00039178,31]
[312957242,1706538800803,-500.0,0.00039178,31]
[312957243,1706538800828,-513.84165675,0.00039178,31]
[312957244,1706538800852,-743.87,0.00039178,31]
[312957245,1706538800876,-506.7822243,0.00039178,31]
[312957246,1706538800900,-2211.57,0.00039178,31]
[312957247,1706538800923,-500.0,0.00039178,31]
[312957248,1706538800947,-924.3,0.00039178,31]
[312957249,1706538800971,-1073.34,0.00039178,31]
[312957250,1706538800999,-872.23,0.00039178,31]
[312957251,1706538801024,-1852.45,0.00039178,31]
[312957252,1706538801048,-5429.7,0.00039178,31]
[312957253,1706538801072,-1635.04,0.00039178,31]
[312957254,1706538801096,-500.0,0.00039178,31]
[312957255,1706538801121,-9404.46,0.00039178,31]
[312957256,1706538801148,-14041.2,0.00039178,31]
[312957257,1706538801172,-510.95781615,0.00039178,31]
[312957258,1706538801204,-500.0,0.00039178,31]
[312957259,1706538801235,-2669.14,0.00039178,31]
[312957260,1706538801258,-500.0,0.00039178,31]
[312957261,1706538801282,-2294.83,0.00039178,31]
[312957262,1706538801393,-500.0,0.00039178,31]
[312957263,1706538801421,-500.0,0.00039178,31]
[312957264,1706538801447,-500.0,0.00039178,31]
[312957265,1706538801472,-878.0,0.00039178,31]
[312957266,1706538801496,-4182.51,0.00039178,31]
[312957267,1706538801519,-500.0,0.00039178,31]
[312957268,1706538801544,-14584.84,0.00039178,31]
[312957269,1706538801568,-500.0,0.00039178,31]
[312957270,1706538801592,-500.0,0.00039178,31]
[312957271,1706538801616,-500.0,0.00039178,31]
[312957272,1706538801639,-500.0,0.00039178,31]
[312957273,1706538801664,-660.89,0.00039178,31]
[312957274,1706538801690,-500.0,0.00039178,31]
[312957275,1706538801716,-500.0,0.00039178,31]
[312957276,1706538801739,-749.73,0.00039178,31]
[312957277,1706538801763,-2909.62,0.00039178,31]
[312957278,1706538801790,-2473.64,0.00039178,31]
[312957279,1706538801814,-500.0,0.00039178,31]
[312957280,1706538801838,-500.0,0.00039178,31]
[312957281,1706538801862,-4154.62,0.00039178,31]
[312957282,1706538801886,-500.0,0.00039452,31]
[312957283,1706538801909,-197.96519364,0.00039452,31]
[312957284,1706538801933,-500.0,0.00039452,31]
[312957285,1706538801963,-500.0,0.00039452,31]
[312957286,1706538801987,-500.0,0.00039452,31]
[312957287,1706538802011,-288.962155,0.00039452,30]
[312957288,1706538802035,-500.0,0.00039452,31]
[312957289,1706538802058,-500.0,0.00039452,31]
[312957290,1706538802085,-500.0,0.00039452,31]
[312957291,1706538802108,-500.0,0.00039452,31]
[312957292,1706538802133,-1691.94,0.00039452,31]
[312957293,1706538802160,-500.0,0.00039452,31]
[312957294,1706538802185,-500.0,0.00039452,31]
[312957295,1706538802208,-828.48,0.00039452,31]
[312957296,1706538802232,-500.0,0.00039452,31]
[312957297,1706538802256,-500.0,0.00039452,31]
[312957298,1706538802279,-514.4289048,0.00039452,31]
[312957299,1706538802303,-500.0,0.00039452,31]
[312957300,1706538802328,-1435.56,0.00039452,31]
[312957301,1706538802352,-704.48,0.00039452,31]
[312957302,1706538802378,-500.0,0.00039452,31]
[312957303,1706538802401,-4725.61,0.00039452,31]
[312957304,1706538802423,-1231.73,0.00039452,31]
[312957305,1706538802447,-1441.83,0.00039452,31]
[312957306,1706538802470,-500.0,0.00039452,31]
[312957307,1706538802494,-2221.56,0.00039452,31]
[312957308,1706538802519,-500.0,0.00039452,31]
[312957309,1706538802542,-500.0,0.00039452,31]
[312957310,1706538802567,-507.7308507,0.00039452,31]
[312957311,1706538802591,-813.27,0.00039452,31]
[312957312,1706538802614,-500.0,0.00039452,31]
[312957313,1706538802638,-807.25,0.00039452,31]
[312957314,1706538802661,-500.0,0.00039452,31]
[312957315,1706538802684,-724.98,0.00039452,31]
[312957316,1706538802707,-500.0,0.00039452,31]
[312957317,1706538802730,-1574.41,0.00039452,31]
[312957318,1706538802754,-905.22,0.00039452,31]
[312957319,1706538802777,-325.9491947,0.00039452,31]
[312957320,1706538802801,-500.0,0.00039452,31]
[312957321,1706538802826,-500.0,0.00039452,31]
[312957322,1706538802850,-500.0,0.00039452,31]
[312957323,1706538802874,-500.0,0.00039452,31]
[312957324,1706538802899,-500.0,0.00039452,31]
[312957325,1706538802922,-500.0,0.00039452,31]
[312957326,1706538802946,-3427.6,0.00039452,31]
[312957327,1706538802969,-525.15093491,0.00039452,31]
[312957328,1706538802990,-1057.6,0.00039452,31]
[312957329,1706538803014,-500.0,0.00039452,31]
[312957330,1706538803040,-1017.15,0.00039452,31]
[312957331,1706538803065,-2169.21,0.00039452,31]
[312957332,1706538803090,-1131.83,0.00039452,31]
[312957333,1706538803114,-500.0,0.00039452,31]
[312957334,1706538803138,-779.34,0.00039452,31]
[312957335,1706538803169,-9873.08,0.00039452,31]
[312957336,1706538803194,-500.0,0.00039452,31]
[312957337,1706538803306,-11797.11,0.00039452,31]
[312957338,1706538803333,-2020.52,0.00039452,31]
[312957339,1706538803357,-500.0,0.00039452,31]
[312957340,1706538803381,-743.87,0.00039452,31]
[312957341,1706538803405,-2211.57,0.00039452,31]
[312957342,1706538803430,-500.0,0.00039452,31]
[312957343,1706538803454,-924.3,0.00039452,31]
[312957344,1706538803478,-1073.34,0.00039452,31]
[312957345,1706538803509,-872.23,0.00039452,31]
[312957346,1706538803534,-1852.45,0.00039452,31]
[312957347,1706538803557,-5429.7,0.00039452,31]
[312957348,1706538803581,-1635.04,0.00039452,31]
[312957349,1706538803605,-506.90592048,0.00039452,31]
[312957350,1706538803630,-9404.46,0.00039452,31]
[312957351,1706538803656,-14041.2,0.00039452,31]
[312957352,1706538803680,-500.0,0.00039452,31]
[312957353,1706538803703,-2669.14,0.00039452,31]
[312957354,1706538803727,-500.0,0.00039452,31]
[312957355,1706538803751,-2294.83,0.00039452,31]
[312957356,1706538803774,-513.33538003,0.00039452,31]
[312957357,1706538803797,-500.0,0.00039452,31]